bitfinex/quotes_ETHUSD_20241123
["timestamp","ask_amount","ask_price","bid_price","bid_amount"]
[1732399877631,6.01933757,3413.4,3413.3,0.01118716]
[1732399877833,6.04622646,3413.4,3413.3,0.01118716]
[1732399878153,6.86018463,3413.4,3413.3,0.01118716]
[1732399878359,6.83329574,3413.4,3413.3,0.01118716]
[1732399878531,0.90366574,3413.4,3413.3,0.01118716]
[1732399878732,3.01933757,3413.4,3413.3,0.01118716]
[1732399879546,3.01933757,3413.4,3412.7,0.02310328]
[1732399879745,0.02688889,3413.3,3412.3,0.8042]
[1732399879961,0.07265955,3413.2,3412.3,0.8042]
[1732399880133,0.07265955,3413.2,3412.4,0.81300325]
[1732399880329,2.9295,3413.6,3412.4,0.81300325]
[1732399880632,2.92972,3413.3,3412.4,0.7837]
[1732399880832,0.02688889,3413.2,3412.4,0.7837]
[1732399881142,0.09947304,3413.2,3412.4,0.7837]
[1732399881357,0.07013029,3413.1,3412.4,0.7837]
[1732399881548,2.92989,3413.1,3412.4,0.7837]
[1732399881747,2.93022,3412.8,3412.1,0.7837]
[1732399882075,3.00024276,3412.7,3412.1,0.7837]
[1732399882242,2.93033,3412.6,3412.1,0.7837]
[1732399882452,2.93033,3412.6,3411.8,0.06401661]
[1732399882453,0.06995837,3412.6,3411.8,0.84771661]
[1732399882633,11.81972,3413.3,3411.8,0.06401661]
[1732399882634,2.93074,3412.1,3411.8,0.06401661]
[1732399882835,2.93104,3411.8,3411.1,0.7837]
[1732399883064,2.9311,3411.7,3411.1,0.7837]
[1732399883229,3.00069151,3411.7,3411.1,0.7837]
[1732399883432,0.06959151,3411.7,3411.1,0.7837]
[1732399883669,2.93092,3411.9,3411.1,0.7837]
[1732399883876,0.0695571,3411.6,3411.1,0.7837]
[1732399884073,3.294644,3412.0,3411.1,0.7837]
[1732399884303,0.06952269,3411.5,3411.1,0.7837]
[1732399884512,2.93099,3411.9,3411.1,0.7837]
[1732399884672,0.06948828,3411.4,3411.1,0.7837]
[1732399884877,2.93099,3411.9,3411.1,0.7837]
[1732399885195,3.9551138,3411.9,3411.1,0.7837]
[1732399885373,0.06962592,3411.8,3411.1,0.7837]
[1732399887372,2.93116,3411.7,3411.1,0.7837]
[1732399887573,2.93144,3411.3,3410.6,0.7837]
[1732399887774,0.06941945,3411.2,3410.6,0.7837]
[1732399888311,0.0157,3411.4,3410.6,0.7837]
[1732399888472,0.06930046,3411.1,3410.6,0.7837]
[1732399888807,0.06926604,3411.0,3410.6,0.7837]
[1732399889016,0.0157,3411.4,3410.6,0.7837]
[1732399889335,2.93126,3411.5,3410.6,0.7837]
[1732399889336,0.06923161,3410.9,3410.6,0.7837]
[1732399889471,2.93126,3411.5,3410.6,0.7837]
[1732399889677,0.06919719,3410.8,3410.6,0.7837]
[1732399889901,2.93136,3411.4,3410.6,0.7837]
[1732399890214,0.06916276,3410.7,3410.6,0.7837]
[1732399890391,2.93136,3411.4,3410.6,0.7837]
[1732399890905,3.0,3411.5,3410.6,0.7837]
[1732399891112,1.013745,3411.5,3410.6,0.7837]
[1732399891318,1.19057,3411.6,3410.6,0.7837]
[1732399891679,3.0,3411.5,3410.6,0.7837]
[1732399891874,1.19057,3411.6,3410.6,0.7837]
[1732399892220,0.0157,3411.7,3410.6,0.7837]
[1732399892589,3.0,3411.5,3410.5,0.02310328]
[1732399892789,2.93203,3410.6,3410.5,0.02310328]
[1732399892990,2.93212,3410.5,3409.3,0.05265818]
[1732399893223,2.93291,3409.6,3409.3,0.05265818]
[1732399893374,2.93309,3409.4,3408.0,0.01241904]
[1732399893578,2.93361,3408.8,3408.1,0.06706711]
[1732399893923,2.93332,3409.1,3408.1,0.06706711]
[1732399893924,2.93344,3409.0,3408.2,0.201388]
[1732399894215,2.93392,3408.4,3408.3,0.06706317]
[1732399894418,0.2,3409.5,3408.3,0.06706317]
[1732399894419,0.0157,3409.2,3408.3,0.06706317]
[1732399894712,2.93316,3409.3,3408.4,0.7615]
[1732399894923,0.58752217,3409.3,3408.4,0.7615]
[1732399895218,0.58752217,3409.3,3408.5,0.06705924]
[1732399895403,2.93298,3409.5,3408.5,0.06705924]
[1732399895634,3.227848,3409.5,3408.5,0.06705924]
[1732399895808,2.93298,3409.5,3408.5,0.06705924]
[1732399896010,2.94851,3409.7,3408.5,0.06705924]
[1732399896328,0.0157,3409.7,3408.5,0.06705924]
[1732399896634,0.58061152,3409.7,3408.6,0.20117483]
[1732399897417,0.58061152,3409.7,3408.7,0.20117483]
[1732399897596,2.93289,3409.6,3408.8,0.20117483]
[1732399897933,2.93314,3409.4,3408.4,0.7615]
[1732399898100,2.93314,3409.4,3408.5,0.2012576]
[1732399898412,2.93289,3409.6,3408.4,0.7615]
[1732399898916,0.58061152,3409.7,3408.4,0.7615]
[1732399898917,2.93309,3409.4,3408.4,0.7615]
[1732399900036,0.06384731,3409.3,3408.4,0.7615]
[1732399900402,2.93328,3409.2,3408.4,0.7615]
[1732399900796,0.06381286,3409.2,3408.4,0.7615]
[1732399901003,2.93309,3409.4,3408.4,0.7615]
[1732399901345,0.06384731,3409.3,3408.4,0.7615]
[1732399901504,2.99704731,3409.3,3408.4,0.7615]
[1732399903028,0.06384731,3409.3,3408.4,0.7615]
[1732399903241,2.93298,3409.5,3408.4,0.7615]
[1732399903403,0.06381286,3409.2,3408.4,0.7615]
[1732399903598,2.93292,3409.6,3408.4,0.7615]
[1732399903905,0.06391622,3409.5,3408.4,0.7615]
[1732399904522,2.99690622,3409.5,3408.4,0.7615]
[1732399905754,2.93308,3409.4,3408.4,0.7615]
[1732399906239,0.06364191,3409.3,3408.4,0.7615]
[1732399906751,2.93315,3409.3,3408.4,0.7615]
[1732399907044,0.06360746,3409.2,3408.4,0.7615]
[1732399907350,2.93307,3409.4,3408.4,0.7615]
[1732399907548,0.063573,3409.1,3408.4,0.7615]
[1732399907847,0.06364191,3409.3,3408.4,0.7615]
[1732399908017,0.06353853,3409.0,3408.4,0.7615]
[1732399908402,2.93323,3409.2,3408.4,0.7615]
[1732399908606,0.06350407,3408.9,3408.4,0.7615]
[1732399908804,2.93298,3409.5,3408.4,0.7615]
[1732399908805,2.93316,3409.3,3408.4,0.7615]
[1732399909038,0.0634696,3408.8,3408.4,0.7615]
[1732399909241,2.93323,3409.2,3407.8,0.1498877]
[1732399909451,2.93418,3408.1,3407.8,0.1498877]
[1732399909952,0.06319381,3408.0,3407.8,0.1498877]
[1732399910708,2.99748381,3408.0,3407.8,0.1498877]
[1732399911312,0.06319381,3408.0,3407.8,0.1498877]
[1732399911524,2.93429,3408.0,3407.8,0.1498877]
[1732399911855,0.06114377,3407.9,3407.8,0.1498877]
[1732399913754,0.05922723,3407.9,3407.8,0.1498877]
[1732399914242,2.93388,3408.5,3407.8,0.1498877]
[1732399914479,0.05922723,3407.9,3407.8,0.4414877]
[1732399914651,0.05922723,3407.9,3407.8,0.1498877]
[1732399914846,3.820635,3408.5,3407.8,0.1498877]
[1732399915059,0.05924548,3408.4,3407.8,0.1498877]
[1732399920380,0.05915961,3408.3,3407.8,0.1498877]
[1732399920693,2.93383,3408.6,3407.8,0.1498877]
[1732399920850,0.35455636,3408.7,3407.9,0.8]
[1732399921043,0.05912513,3408.2,3407.9,0.8]
[1732399921242,0.05926303,3408.6,3407.9,0.8]
[1732399921648,0.0157,3409.4,3407.9,0.8]
[1732399921845,2.9333,3409.2,3407.9,0.8]
[1732399922055,3.58921631,3409.3,3407.9,0.8]
[1732399922281,2.98720028,3409.1,3407.9,0.8]
[1732399922482,2.93343,3409.0,3407.9,0.8]
[1732399922984,2.98721581,3409.0,3407.9,0.8]
[1732399923348,0.05378581,3409.0,3407.9,0.8]
[1732399923782,2.93352,3408.9,3407.9,0.8]
[1732399923967,2.98727135,3408.9,3407.9,0.8]
[1732399924283,0.05375135,3408.9,3407.9,0.8]
[1732399924451,2.93355,3408.9,3407.9,0.8]
[1732399924654,0.05371688,3408.8,3407.9,0.8]
[1732399925391,0.08305693,3408.8,3407.2,3.0]
[1732399925701,0.8673,3408.0,3406.2,0.59064537]
[1732399925876,0.1,3407.6,3406.3,0.3568542]
[1732399926059,2.93512,3407.1,3405.5,0.04302303]
[1732399926258,3.51480515,3406.5,3405.6,0.02935454]
[1732399926486,2.93521,3406.9,3405.5,0.04302303]
[1732399926660,0.1,3406.7,3405.5,0.04302303]
[1732399926863,0.7673,3406.1,3405.5,0.04302303]
[1732399927088,1.44647691,3406.1,3405.5,0.04302303]
[1732399927280,0.64172917,3406.6,3405.5,0.04302303]
[1732399927281,0.05275102,3406.0,3405.5,0.04302303]
[1732399927652,0.1,3406.3,3405.5,0.04302303]
[1732399927855,0.58877105,3406.6,3405.5,0.04302303]
[1732399928102,3.03514,3407.0,3405.5,0.04302303]
[1732399928398,3.7673,3407.4,3405.5,0.04302303]
[1732399928399,3.03482,3407.4,3405.6,0.8]
[1732399928691,0.1,3407.4,3405.8,0.8]
[1732399928896,0.1,3407.4,3405.9,0.82935313]
[1732399929189,2.98646297,3407.3,3405.9,0.82935313]
[1732399929437,2.98646297,3407.3,3406.0,0.38293531]
[1732399929568,2.98646297,3407.3,3406.1,0.8207]
[1732399929766,0.05157297,3407.3,3406.2,0.02935315]
[1732399930094,0.05157297,3407.3,3406.1,0.8207]
[1732399930388,2.98648297,3407.3,3406.1,0.8207]
[1732399930594,0.1,3406.7,3406.1,0.8207]
[1732399930754,2.93578,3406.3,3406.1,0.8207]
[1732399931055,2.9868646,3406.2,3406.1,0.8207]
[1732399931254,2.93602,3406.0,3405.6,0.8207]
[1732399931473,0.02934005,3405.9,3405.6,0.8207]
[1732399931685,0.05093548,3405.9,3405.6,0.8207]
[1732399932200,2.93594,3406.1,3405.6,0.8207]
[1732399932201,0.05090096,3405.8,3405.6,0.8207]
[1732399932397,0.05090096,3405.8,3405.5,0.04302303]
[1732399932689,2.93609,3405.9,3405.5,0.04302303]
[1732399932990,0.02934005,3406.0,3405.5,0.04302303]
[1732399933217,0.08024101,3405.8,3405.5,0.04302303]
[1732399933416,2.96558005,3405.8,3405.5,0.04302303]
[1732399933604,0.05086643,3405.7,3405.5,0.04302303]
[1732399934102,2.96558005,3405.8,3405.5,0.04302303]
[1732399934322,5.93634,3405.6,3405.5,0.04302303]
[1732399934502,0.0508319,3405.6,3405.5,0.04302303]
[1732399934891,2.96541005,3406.0,3405.5,0.04302303]
[1732399935123,3.05093548,3405.9,3405.5,0.04302303]
[1732399935428,0.02934005,3405.8,3405.5,0.04302303]
[1732399935783,2.98712643,3405.7,3405.5,0.04302303]
[1732399936015,3.1,3405.6,3405.5,0.04302303]
[1732399936218,6.03634,3405.6,3405.5,0.04302303]
[1732399936418,6.08684001,3405.6,3405.5,0.04302303]
[1732399936716,6.08684001,3405.6,3405.0,0.8207]
[1732399936891,2.93645,3405.5,3405.0,0.8207]
[1732399937217,6.11628099,3405.4,3404.6,0.8207]
[1732399937428,2.93686,3405.0,3404.6,0.8207]
[1732399937720,0.07959829,3404.9,3404.6,0.8207]
[1732399938082,0.05025824,3404.9,3404.6,0.8207]
[1732399938422,3.0,3404.9,3404.6,0.8207]
[1732399938579,0.05022369,3404.8,3404.6,0.8207]
[1732399939001,2.93678,3405.1,3404.6,0.8207]
[1732399939439,0.12934005,3405.2,3404.6,0.8207]
[1732399939440,0.05026318,3405.0,3404.6,0.8207]
[1732399939715,2.93682,3405.1,3404.6,0.8207]
[1732399939932,0.05026318,3405.0,3404.6,0.8207]
[1732399940097,2.98714318,3405.0,3404.6,0.8207]
[1732399940278,0.05026318,3405.0,3404.6,0.8207]
[1732399940686,0.05022863,3404.9,3404.6,0.8207]
[1732399941131,3.03669,3405.2,3404.6,0.8207]
[1732399941296,2.98708772,3405.1,3404.6,0.8207]
[1732399942629,2.93686,3405.0,3404.6,0.8207]
[1732399942995,2.98717863,3404.9,3404.6,0.8207]
[1732399943328,2.98717863,3404.9,3404.5,0.1498877]
[1732399943839,2.93706,3404.8,3404.5,0.1498877]
[1732399944032,0.02934005,3404.8,3404.5,0.1498877]
[1732399944337,7.3893,3404.6,3404.5,7.7e-06]
[1732399944546,8.47995734,3404.6,3404.5,7.7e-06]
[1732399945934,7.12785734,3404.6,3404.5,7.7e-06]
[1732399946099,6.08727038,3404.6,3404.5,7.7e-06]
[1732399946300,6.11661043,3404.6,3404.5,7.7e-06]
[1732399947130,6.66661043,3404.6,3404.5,7.7e-06]
[1732399947291,6.63727038,3404.6,3404.5,7.7e-06]
[1732399947492,6.08727038,3404.6,3404.5,7.7e-06]
[1732399947735,7.01904447,3404.6,3404.5,7.7e-06]
[1732399947896,6.98970442,3404.6,3404.5,7.7e-06]
[1732399948313,0.15007038,3404.6,3404.5,7.7e-06]
[1732399948833,3.11661043,3404.6,3404.5,7.7e-06]
[1732399949025,0.17941043,3404.6,3404.5,7.7e-06]
[1732399949438,0.15007038,3404.6,3404.5,7.7e-06]
[1732399950212,0.04673655,3404.6,3404.5,7.7e-06]
[1732399950528,0.1,3404.9,3404.5,7.7e-06]
[1732399950721,0.0437182,3404.8,3404.5,7.7e-06]
[1732399951422,2.9807582,3404.8,3404.5,7.7e-06]
[1732399951825,2.93719,3404.7,3404.5,7.7e-06]
[1732399952139,2.98087609,3404.6,3404.5,7.7e-06]
[1732399952296,3.08087609,3404.6,3404.5,7.7e-06]
[1732399958320,6.63087609,3404.6,3404.5,7.7e-06]
[1732399959123,6.08087609,3404.6,3404.5,7.7e-06]
[1732399961155,0.04367609,3404.6,3404.5,7.7e-06]
[1732399961373,0.1,3404.8,3404.5,7.7e-06]
[1732399961676,2.9372,3404.6,3404.5,7.7e-06]
[1732399961882,3.53860954,3404.6,3404.5,7.7e-06]
[1732399962176,3.57717851,3404.6,3404.5,7.7e-06]
[1732399965220,7.49287851,3404.6,3404.5,7.7e-06]
[1732399965366,7.76439089,3404.6,3404.5,7.7e-06]
[1732399965562,8.19877433,3404.6,3404.5,7.7e-06]
[1732399966490,6.03763,3404.1,3404.0,0.10887985]
[1732399966664,7.12478301,3404.1,3404.0,0.10887985]
[1732399967048,7.16317919,3404.1,3404.0,0.10887985]
[1732399967303,7.16317919,3404.1,3401.4,0.02938396]
[1732399967304,3.1,3402.8,3401.2,1.4224684]
[1732399967512,3.1,3402.8,3401.2,0.7932]
[1732399967513,2.93919,3402.3,3401.2,0.7932]
[1732399967812,0.03773914,3402.2,3401.2,0.77259475]
[1732399967972,0.1,3402.8,3401.2,0.77259475]
[1732399967973,3.0,3402.5,3401.2,0.77259475]
[1732399968170,0.1,3402.2,3401.2,0.02939475]
[1732399968518,0.03770454,3402.1,3401.2,0.02939354]
[1732399968670,0.03770454,3402.1,3401.1,0.17928178]
[1732399968872,0.1,3403.1,3401.2,0.2929]
[1732399969068,2.93841,3403.2,3401.3,0.02939039]
[1732399969304,0.03659575,3403.0,3401.3,0.02939039]
[1732399969507,0.03663033,3403.1,3401.3,0.02939039]
[1732399969672,0.03652938,3402.9,3401.3,0.57939039]
[1732399969871,0.03656396,3403.0,3401.7,0.55]
[1732399970096,3.0,3403.4,3401.8,0.02938649]
[1732399970370,0.03666864,3403.3,3401.8,0.02938649]
[1732399970942,0.03666864,3403.3,3402.0,0.55]
[1732399971102,0.03666864,3403.3,3402.1,0.8006]
[1732399971300,0.03666864,3403.3,3402.3,0.8006]
[1732399971547,3.0,3403.9,3402.7,0.8006]
[1732399971844,3.0,3403.7,3402.7,0.8006]
[1732399972046,0.13688171,3403.8,3402.7,0.8006]
[1732399972202,0.03681257,3403.6,3402.7,0.8006]
[1732399972405,0.5779044,3404.2,3402.9,0.8006]
[1732399972601,0.03698541,3404.1,3403.1,0.8006]
[1732399973338,0.03698541,3404.1,3403.3,0.8006]
[1732399973837,3.0372,3404.6,3403.4,0.55]
[1732399974010,3.0372,3404.6,3403.5,0.8006]
[1732399974215,0.1,3404.6,3403.5,0.8006]
[1732399974435,0.03714888,3404.5,3403.5,0.8006]
[1732399974946,2.97445888,3404.5,3403.5,0.8006]
[1732399975298,3.0,3404.3,3403.5,0.8006]
[1732399975499,0.0370452,3404.2,3403.5,0.8006]
[1732399976924,6.03724,3404.6,3403.5,0.8006]
[1732399977225,2.93743,3404.4,3403.5,0.8006]
[1732399977416,3.0,3404.3,3403.5,0.8006]
[1732399977612,0.0371676,3404.3,3403.5,0.8006]
[1732399977833,3.0,3404.2,3403.5,0.8006]
[1732399978145,3.03713304,3404.2,3403.5,0.8006]
[1732399978718,0.03713304,3404.2,3403.5,0.8006]
[1732399978924,3.0,3404.5,3403.5,0.8006]
[1732399979123,0.03720216,3404.4,3403.5,0.8006]
[1732399979325,2.93751,3404.3,3403.6,0.55]
[1732399979556,0.03713304,3404.2,3403.6,0.55]
[1732399980062,2.93743,3404.4,3403.6,0.55]
[1732399980261,0.03709848,3404.1,3403.6,0.55]
[1732399980473,2.93743,3404.4,3403.6,0.55]
[1732399980626,0.03706392,3404.0,3403.6,0.55]
[1732399980822,2.93743,3404.4,3403.6,0.55]
[1732399981037,0.03702935,3403.9,3403.6,0.55]
[1732399981221,5.93729,3404.5,3403.6,0.55]
[1732399981426,0.03699478,3403.8,3402.8,0.7521]
[1732399981628,0.1,3404.0,3402.8,0.7521]
[1732399981825,0.03707331,3403.7,3402.8,0.7021]
[1732399982094,0.29750233,3403.6,3402.8,0.7021]
[1732399982260,0.03689224,3403.6,3402.8,0.7021]
[1732399982626,3.0,3403.9,3402.8,0.7021]
[1732399982832,0.03685019,3403.5,3402.2,0.02938335]
[1732399983032,3.974629,3403.9,3402.2,0.02938335]
[1732399983229,0.03681561,3403.4,3402.2,0.02938335]
[1732399983443,3.1,3404.0,3402.2,0.02938335]
[1732399983673,0.03678104,3403.3,3402.4,0.55]
[1732399983972,3.3391169,3403.8,3402.4,0.55]
[1732399984182,2.93845,3403.2,3401.3,0.1]
[1732399984337,0.03671188,3403.1,3401.6,0.1]
[1732399984539,0.03671188,3403.1,3401.8,0.2929]
[1732399984737,0.03671188,3403.1,3402.1,0.2929]
[1732399984979,2.93824,3403.4,3402.3,0.2929]
[1732399985291,0.03671279,3403.3,3402.3,0.2929]
[1732399985577,0.03671279,3403.3,3402.6,0.55]
[1732399985578,2.97504279,3403.3,3402.6,0.55]
[1732399986434,2.97504279,3403.3,3402.5,0.2929]
[1732399986839,0.03671279,3403.3,3402.6,0.55]
[1732399987282,0.03671279,3403.3,3402.3,0.55]
[1732399989486,2.97510279,3403.3,3402.3,0.55]
[1732399989955,0.03671279,3403.3,3402.4,0.7578]
[1732399990155,2.93821,3403.5,3402.6,0.7578]
[1732399990357,0.03673241,3403.4,3402.6,0.7578]
[1732399990566,3.03857,3403.1,3402.6,0.7578]
[1732399990765,0.03659409,3403.0,3402.6,0.7578]
[1732399991168,2.97517409,3403.0,3402.6,0.7578]
[1732399991372,2.93876,3402.8,3402.6,0.7578]
[1732399991547,0.03649407,3402.7,3402.6,0.7578]
[1732399991747,2.9386,3403.0,3402.6,0.7578]
[1732399991944,0.03655763,3402.9,3402.6,0.7578]
[1732399992650,0.1,3403.1,3402.6,0.7578]
[1732399992850,0.03652304,3402.8,3402.6,0.7578]
[1732399993092,0.1,3403.1,3402.6,0.7578]
[1732399993247,0.03648845,3402.7,3402.6,0.7578]
[1732399993453,0.1,3403.1,3402.6,0.7578]
[1732399993778,0.03648845,3402.7,3402.6,0.7578]
[1732399993948,4.00288,3403.5,3402.6,0.7578]
[1732399994148,0.03660617,3403.4,3402.6,0.7578]
[1732399995688,0.1,3403.9,3402.6,0.7578]
[1732399995984,0.482985,3403.9,3402.6,0.7578]
[1732399996188,0.0356626,3403.8,3402.6,0.7578]
[1732399996749,0.0356626,3403.8,3401.8,0.02938715]
[1732399996750,0.0356626,3403.8,3402.8,0.7578]
[1732399997114,0.0356626,3403.8,3403.0,0.7578]
[1732399997290,0.0356626,3403.8,3403.1,0.7578]
[1732399997595,0.03565796,3403.7,3403.3,0.7578]
[1732399997778,0.1,3404.4,3403.3,0.7578]
[1732399997986,0.03586534,3404.3,3403.3,0.7578]
[1732399998192,4.32968346,3404.8,3403.6,0.55]
[1732399998193,0.8922,3404.8,3403.6,0.55]
[1732399998499,0.03600356,3404.7,3403.9,0.7578]
[1732399998974,0.1,3405.0,3403.9,0.7578]
[1732399998975,0.03605968,3404.6,3403.9,0.7578]
[1732399999176,2.93677,3405.2,3403.9,0.7578]
[1732399999492,0.303677,3405.0,3404.1,0.7578]
[1732400000001,0.03616333,3404.9,3404.2,0.55]
[1732400000370,0.1,3405.2,3404.3,0.7578]
[1732400000571,0.03626232,3405.1,3404.3,0.7578]
[1732400001192,0.1,3405.2,3404.3,0.7578]
[1732400001400,0.63993581,3405.1,3404.3,0.7578]
[1732400001774,2.93696,3404.9,3404.3,0.7578]
[1732400001976,3.03618578,3404.8,3404.3,0.7578]
[1732400002297,3.0,3404.6,3404.3,0.7578]
[1732400002601,0.03608213,3404.5,3404.3,0.7578]
[1732400002905,0.68653458,3404.7,3404.3,0.7578]
[1732400003106,0.03604757,3404.4,3404.3,0.7578]
[1732400003310,0.1,3405.0,3404.3,0.7578]
[1732400003467,0.03604757,3404.4,3404.3,0.7578]
[1732400003669,6.03685,3405.0,3404.3,0.7578]
[1732400003889,0.03604757,3404.4,3404.3,0.7578]
[1732400004088,3.1,3405.4,3404.3,0.7578]
[1732400004294,0.03604757,3404.4,3404.3,0.7578]
[1732400004504,3.1,3405.4,3404.3,0.75259113]
[1732400004691,0.897282,3405.3,3404.3,0.75259113]
[1732400004893,0.93364049,3405.3,3404.3,0.75259113]
[1732400006190,0.03635849,3405.3,3404.3,0.75259113]
[1732400006530,3.1,3405.8,3404.4,0.57936935]
[1732400006707,0.03632395,3405.2,3404.4,0.55]
[1732400007014,0.03628941,3405.1,3404.4,0.55]
[1732400007309,0.603609,3405.7,3404.4,0.55]
[1732400007514,0.03625487,3405.0,3404.6,0.55]
[1732400007685,3.03599,3406.0,3404.7,0.7578]
[1732400007872,0.73517224,3405.9,3404.7,0.7578]
[1732400008074,0.77173792,3405.9,3404.7,0.7578]
[1732400008772,0.74873792,3405.9,3404.7,0.7578]
[1732400009412,2.93619,3405.8,3404.7,0.7578]
[1732400009576,0.03671439,3405.7,3404.8,0.2929]
[1732400010711,0.1,3406.0,3404.1,0.2929]
[1732400011025,0.1,3406.0,3404.7,0.7645]
[1732400011317,0.64037545,3405.9,3404.7,0.7645]
[1732400011816,3.64037545,3405.9,3404.9,0.7645]
[1732400011976,3.03678345,3405.9,3404.9,0.7645]
[1732400012180,0.03678345,3405.9,3404.9,0.7645]
[1732400012788,0.03678345,3405.9,3405.0,0.57936592]
[1732400013114,3.03565,3406.4,3405.1,0.7645]
[1732400013420,3.03565,3406.4,3404.4,0.02936381]
[1732400013421,0.303565,3406.3,3405.3,0.7645]
[1732400013617,0.03694306,3406.2,3405.3,0.7645]
[1732400013927,3.03567,3406.4,3405.3,0.7645]
[1732400014093,0.03583235,3406.1,3405.3,0.7645]
[1732400014291,3.0,3406.0,3405.3,0.7645]
[1732400014480,3.0,3405.8,3405.3,0.7645]
[1732400014882,0.03569425,3405.7,3405.3,0.7645]
[1732400015174,3.1,3406.0,3405.3,0.7645]
[1732400015398,0.72050544,3405.9,3405.3,0.7645]
[1732400015610,0.03577544,3405.9,3405.3,0.7645]
[1732400015787,3.0,3406.3,3405.3,0.7645]
[1732400015997,0.03587901,3406.2,3405.3,0.7645]
[1732400016215,0.6071539,3406.1,3405.3,0.7645]
[1732400016530,0.0358053,3406.0,3405.3,0.7645]
[1732400018025,3.0,3405.9,3405.3,0.7645]
[1732400018329,0.03575025,3405.8,3405.3,0.7645]
[1732400018703,0.6071539,3406.1,3405.3,0.7645]
[1732400018898,0.03571572,3405.7,3405.3,0.7645]
[1732400019108,0.65429939,3406.0,3405.3,0.7645]
[1732400019589,0.03578478,3405.9,3405.3,0.7645]
[1732400020828,3.5430639,3406.1,3405.3,0.7645]
[1732400021003,0.0358193,3406.0,3405.3,0.7645]
[1732400022332,0.69368962,3406.0,3405.3,0.7645]
[1732400022634,2.9718893,3406.0,3405.3,0.7645]
[1732400022797,2.93623,3405.8,3405.3,0.7645]
[1732400022999,0.03571572,3405.7,3405.3,0.7645]
[1732400023196,2.93604,3406.0,3405.3,0.7645]
[1732400023428,2.97191428,3405.9,3405.3,0.7645]
[1732400023628,0.03583428,3405.9,3405.3,0.7645]
[1732400023827,0.1,3406.2,3405.3,0.7645]
[1732400024029,0.03590332,3406.1,3405.3,0.7645]
[1732400024248,0.30717333,3406.0,3405.3,0.7645]
[1732400024440,0.03583428,3405.9,3405.3,0.7645]
[1732400028352,2.93614,3405.9,3405.3,0.7645]
[1732400028555,0.03578948,3405.8,3405.3,0.7645]
[1732400028959,2.93594,3406.1,3405.3,0.7645]
[1732400029121,0.03575495,3405.7,3405.3,0.7645]
[1732400029324,3.239534,3406.1,3405.3,0.7645]
[1732400029529,0.03572042,3405.6,3405.3,0.7645]
[1732400029724,3.239534,3406.1,3405.3,0.7645]
[1732400029920,0.03568589,3405.5,3405.3,0.7645]
[1732400030123,3.239534,3406.1,3405.3,0.7645]
[1732400030322,0.03565135,3405.4,3405.3,0.7645]
[1732400030524,2.93604,3406.0,3405.3,0.7645]
[1732400030870,3.5635684,3406.0,3405.3,0.7645]
[1732400031072,0.03582401,3405.9,3405.3,0.7645]
[1732400033028,3.03586,3406.2,3405.3,0.7645]
[1732400033228,0.03589212,3406.1,3405.3,0.7645]
[1732400033526,0.63664333,3406.1,3405.3,0.7645]
[1732400037075,0.03589212,3406.1,3405.3,0.7645]
[1732400044544,0.03589212,3406.1,3404.8,0.8182]
[1732400044545,0.7863,3406.0,3404.8,0.8182]
[1732400044848,0.03582961,3405.9,3404.9,0.55]
[1732400046776,0.03582961,3405.9,3405.1,0.55]
[1732400047177,0.1,3406.2,3405.1,0.55]
[1732400047377,0.03577921,3405.8,3405.1,0.55]
[1732400047542,0.1,3406.2,3405.1,0.55]
[1732400047739,0.03574468,3405.7,3405.1,0.55]
[1732400047957,0.1,3406.2,3405.1,0.55]
[1732400048172,0.682205,3406.1,3405.1,0.55]
[1732400048369,0.03588279,3406.1,3405.1,0.55]
[1732400048587,0.03588279,3406.1,3401.5,1.44395429]
[1732400048588,0.03588279,3406.1,3405.2,0.02936311]
[1732400048742,0.03588279,3406.1,3405.4,0.55]
[1732400048943,3.82176,3406.7,3405.5,0.8182]
[1732400049144,0.03584826,3406.0,3405.6,0.57936036]
[1732400049439,0.03581374,3405.9,3405.7,0.816]
[1732400049712,0.1,3406.7,3405.7,0.816]
[1732400050381,0.03605537,3406.6,3405.7,0.816]
[1732400050683,0.1,3406.7,3405.7,0.816]
[1732400050684,0.03602086,3406.5,3405.7,0.816]
[1732400050843,0.1,3406.7,3405.7,0.816]
[1732400051039,0.7591,3406.5,3405.8,0.55]
[1732400051284,3.07168634,3406.4,3405.5,0.55]
[1732400051453,3.74832297,3406.4,3405.5,0.55]
[1732400051658,0.27217339,3406.3,3405.5,0.55]
[1732400051888,0.03591731,3406.2,3405.5,0.55]
[1732400052291,3.71233663,3406.4,3405.5,0.55]
[1732400052590,0.03588279,3406.1,3405.4,0.55]
[1732400052744,0.44714366,3406.3,3405.4,0.55]
[1732400053242,0.03591731,3406.2,3405.4,0.55]
[1732400053655,3.69466,3406.5,3405.5,0.816]
[1732400053883,0.03598634,3406.4,3405.6,0.55]
[1732400055281,0.03598634,3406.4,3405.5,0.816]
[1732400057684,0.03598634,3406.4,3405.6,0.55]
[1732400057853,3.1,3406.7,3405.6,0.55]
[1732400058184,0.03609178,3406.6,3405.6,0.55]
[1732400060006,0.03609178,3406.6,3405.7,0.816]
[1732400060152,0.03609178,3406.6,3405.9,0.816]
[1732400060352,0.58584638,3407.2,3406.1,0.816]
[1732400060584,0.03611984,3406.5,3406.1,0.816]
[1732400060790,0.58584638,3407.2,3406.1,0.816]
[1732400060956,0.03608532,3406.4,3406.1,0.816]
[1732400061157,0.58584638,3407.2,3406.1,0.816]
[1732400061353,0.03605081,3406.3,3406.1,0.816]
[1732400061559,0.58584638,3407.2,3406.1,0.816]
[1732400061753,0.77386641,3407.2,3406.1,0.816]
[1732400061978,3.7591,3407.0,3406.1,0.816]
[1732400062194,0.7591,3407.0,3406.1,0.816]
[1732400062393,0.03625787,3406.9,3406.1,0.816]
[1732400064552,0.03625787,3406.9,3406.2,0.2929]
[1732400064767,0.03625787,3406.9,3406.2,0.45879]
[1732400066209,3.0,3407.1,3406.2,0.45879]
[1732400066707,0.03629238,3407.0,3406.2,0.45879]